bitfinex-derivatives/quotes_BTCF0:USTF0_20250709
["timestamp","ask_amount","ask_price","bid_price","bid_amount"]
[1752024617352,1.1152064,108850.0,108840.0,0.72564227]
[1752024617653,1.1152064,108850.0,108840.0,0.47489047]
[1752024617854,0.4851664,108850.0,108840.0,0.72564227]
[1752024618752,0.4851664,108850.0,108840.0,0.71912207]
[1752024621157,0.4851664,108850.0,108840.0,0.73348221]
[1752024622454,0.4851664,108850.0,108840.0,0.48273041]
[1752024622754,0.4851664,108850.0,108840.0,0.73348221]
[1752024623050,0.5081664,108850.0,108840.0,0.68755461]
[1752024623254,0.5397964,108850.0,108840.0,0.68704461]
[1752024623755,0.5397964,108850.0,108840.0,0.43629281]
[1752024624054,0.2890446,108850.0,108840.0,0.43629281]
[1752024624255,0.5397964,108850.0,108840.0,0.43629281]
[1752024625053,0.5397964,108850.0,108840.0,0.39684715]
[1752024625258,0.57304778,108850.0,108840.0,0.13354575]
[1752024625556,0.57304778,108850.0,108840.0,0.31725715]
[1752024625759,0.58224424,108850.0,108840.0,0.31725715]
[1752024626860,0.58224424,108850.0,108840.0,0.13354575]
[1752024627562,1.18299604,108850.0,108840.0,0.02084068]
[1752024627761,1.16299604,108850.0,108840.0,0.02084068]
[1752024628453,1.2357446,108850.0,108840.0,0.02084068]
[1752024633162,1.2357446,108850.0,108840.0,0.01436014]
[1752024633466,1.2357446,108850.0,108840.0,0.02091416]
[1752024634466,1.2357446,108850.0,108840.0,0.02091651]
[1752024641171,1.2357446,108850.0,108840.0,0.20462801]
[1752024641360,1.2357446,108850.0,108840.0,0.02091651]
[1752024644371,0.734241,108850.0,108840.0,0.02091651]
[1752024644568,1.2357446,108850.0,108840.0,0.02091651]
[1752024649376,0.9057446,108850.0,108840.0,0.02091651]
[1752024649579,1.2357446,108850.0,108840.0,0.02091651]
[1752024649782,0.89654814,108850.0,108840.0,0.20462801]
[1752024650080,0.89654814,108850.0,108840.0,0.02091651]
[1752024650474,0.64579634,108850.0,108840.0,0.02086681]
[1752024650881,0.64579634,108850.0,108840.0,0.20457831]
[1752024651284,0.64579634,108850.0,108840.0,0.02086681]
[1752024652183,1.02564454,108850.0,108840.0,0.21966831]
[1752024652384,1.27639634,108850.0,108840.0,0.24446399]
[1752024652575,1.27639634,108850.0,108840.0,0.27476399]
[1752024652776,1.18841634,108850.0,108840.0,0.52551579]
[1752024653276,0.30794454,108850.0,108840.0,0.80069759]
[1752024653477,0.86487598,108850.0,108840.0,0.85069759]
[1752024654283,0.23519598,108850.0,108840.0,0.85069759]
[1752024655184,0.23519598,108850.0,108840.0,0.93340266]
[1752024655384,0.48594778,108850.0,108840.0,0.93340266]
[1752024656885,0.23519598,108850.0,108840.0,0.93340266]
[1752024658579,0.2019446,108850.0,108840.0,0.93340266]
[1752024658976,0.4526964,108850.0,108840.0,0.93340266]
[1752024659187,0.2019446,108850.0,108840.0,0.93340266]
[1752024659485,0.4526964,108850.0,108840.0,0.93340266]
[1752024661387,0.2019446,108850.0,108840.0,0.44189906]
[1752024661588,0.2019446,108850.0,108840.0,0.97265086]
[1752024661589,0.4526964,108850.0,108840.0,0.97265086]
[1752024661885,0.2019446,108850.0,108840.0,0.69265086]
[1752024662087,0.4526964,108850.0,108840.0,0.69265086]
[1752024662585,0.1856946,108850.0,108840.0,1.23340266]
[1752024663083,0.2014846,108850.0,108840.0,1.23340266]
[1752024663286,0.1856946,108850.0,108840.0,1.23340266]
[1752024663480,0.4364464,108850.0,108840.0,1.23340266]
[1752024663785,0.4364464,108850.0,108840.0,1.25340266]
[1752024664286,0.4522364,108850.0,108840.0,1.25340266]
[1752024664486,0.1856946,108850.0,108840.0,1.25340266]
[1752024664688,0.4364464,108850.0,108840.0,0.70265086]
[1752024665086,0.4522364,108850.0,108840.0,0.70265086]
[1752024665286,0.4364464,108850.0,108840.0,0.70265086]
[1752024665581,0.4522364,108850.0,108840.0,0.42746906]
[1752024665888,0.4522364,108850.0,108840.0,0.67822086]
[1752024666289,0.4364464,108850.0,108840.0,0.67822086]
[1752024666486,0.4522364,108850.0,108840.0,0.70265086]
[1752024667086,0.4522364,108850.0,108840.0,0.67822086]
[1752024667487,0.4522364,108850.0,108840.0,1.05698906]
[1752024667693,0.5399164,108850.0,108840.0,1.05698906]
[1752024668387,0.5160364,108850.0,108840.0,1.05698906]
[1752024668790,0.5160364,108850.0,108840.0,0.45189906]
[1752024668991,0.5160364,108850.0,108840.0,0.42746906]
[1752024669191,0.5160364,108850.0,108840.0,0.28077906]
[1752024669192,1.1006682,108850.0,108840.0,0.28077906]
[1752024669790,1.1006682,108850.0,108840.0,0.19807399]
[1752024669991,1.1006682,108850.0,108840.0,0.28077906]
[1752024670182,0.7906682,108850.0,108840.0,0.28077906]
[1752024670583,0.61164642,108850.0,108840.0,0.28077906]
[1752024672290,0.61164642,108850.0,108840.0,0.28077739]
[1752024675092,0.61164642,108850.0,108840.0,0.26641657]
[1752024675387,0.61164642,108850.0,108840.0,0.28077739]
[1752024675583,0.61164642,108850.0,108840.0,0.29628739]
[1752024675788,0.64481692,108850.0,108840.0,0.19807232]
[1752024676189,1.25037692,108850.0,108840.0,0.46433412]
[1752024676381,1.25037692,108850.0,108840.0,0.52753412]
[1752024676577,1.25037692,108850.0,108840.0,0.19807232]
[1752024676789,1.27425692,108850.0,108840.0,0.19807232]
[1752024677086,1.27425692,108850.0,108840.0,0.21358232]
[1752024677282,1.90500872,108850.0,108840.0,0.01436082]
[1752024677482,1.89500872,108850.0,108840.0,0.01436082]
[1752024678292,1.89500872,108850.0,108840.0,0.0207883]
[1752024678590,1.89500872,108850.0,108840.0,0.01436082]
[1752024679590,1.89500872,108850.0,108840.0,0.02080938]
[1752024681584,1.02350512,108850.0,108840.0,0.02080938]
[1752024681887,1.90500872,108850.0,108840.0,1e-08]
[1752024682093,1.98759212,108850.0,108840.0,1e-08]
[1752024683789,0.1837115,108840.0,108830.0,0.01913913]
[1752024683988,1.1924356,108840.0,108830.0,0.01913913]
[1752024684394,1.1592651,108840.0,108830.0,0.01913913]
[1752024684596,1.19231552,108840.0,108830.0,0.01913913]
[1752024685496,1.19231552,108840.0,108830.0,0.02013913]
[1752024690293,1.44306732,108840.0,108830.0,0.02013913]
[1752024690492,0.1837452,108820.0,108810.0,0.43918736]
[1752024690691,1.3546388,108820.0,108810.0,0.53503736]
[1752024690891,1.4191388,108820.0,108810.0,0.48909746]
[1752024691895,1.4191388,108820.0,108810.0,0.44315896]
[1752024692293,1.4191388,108820.0,108810.0,0.44715896]
[1752024692593,1.4191388,108820.0,108810.0,0.45115896]
[1752024692793,1.16860275,108820.0,108810.0,0.45115896]
[1752024693404,1.49860275,108820.0,108810.0,0.45115896]
[1752024693697,1.49860275,108820.0,108810.0,0.36845389]
[1752024694004,1.49860275,108820.0,108810.0,0.39063779]
[1752024694803,1.16860275,108820.0,108810.0,0.35843779]
[1752024695003,1.53860275,108820.0,108810.0,0.27843779]
[1752024696100,1.53860275,108820.0,108810.0,0.0775339]
[1752024696302,1.53860275,108820.0,108810.0,0.0301839]
[1752024696502,1.53860275,108820.0,108810.0,0.03022498]
[1752024697606,1.53860275,108820.0,108810.0,0.21398708]
[1752024697905,1.53860275,108820.0,108810.0,0.22983708]
[1752024698709,1.53860275,108820.0,108810.0,0.26023676]
[1752024698909,1.16860275,108820.0,108810.0,0.29093676]
[1752024699109,1.11245275,108820.0,108810.0,0.29093676]
[1752024699611,1.13700275,108820.0,108810.0,0.29093676]
[1752024699803,1.10410275,108820.0,108810.0,0.29093676]
[1752024700109,1.07955275,108820.0,108810.0,0.31515676]
[1752024700311,0.1991452,108820.0,108810.0,0.56612431]
[1752024700606,0.8286252,108820.0,108810.0,0.57612431]
[1752024701210,0.8286252,108820.0,108810.0,0.65882938]
[1752024701396,0.8285852,108820.0,108810.0,0.88612431]
[1752024702111,0.9509857,108830.0,108820.0,0.1837452]
[1752024702310,0.9509857,108830.0,108820.0,0.28241986]
[1752024702510,0.9663857,108830.0,108820.0,0.30663986]
[1752024702712,0.9509857,108830.0,108820.0,0.30663986]
[1752024703104,0.9663857,108830.0,108820.0,0.30663986]
[1752024703715,0.8745151,108830.0,108820.0,0.55760741]
[1752024704111,0.8745151,108830.0,108820.0,0.64031248]
[1752024704312,0.2450751,108830.0,108820.0,0.55960741]
[1752024704510,0.8745151,108830.0,108820.0,0.64231248]
[1752024706011,0.8745151,108830.0,108820.0,0.39134493]
[1752024706312,0.8745151,108830.0,108820.0,0.39334493]
[1752024706716,0.8745151,108830.0,108820.0,0.39318153]
[1752024708919,0.8745151,108830.0,108820.0,0.64414908]
[1752024709120,0.8745151,108830.0,108820.0,0.39318153]
[1752024709713,0.2450751,108830.0,108820.0,0.73318153]
[1752024709917,0.8744751,108830.0,108820.0,0.73318153]
[1752024710618,0.8744751,108830.0,108820.0,0.39318153]
[1752024711824,0.2450751,108830.0,108820.0,0.39318153]
[1752024712714,0.49604265,108830.0,108820.0,0.72318153]
[1752024712910,0.49604265,108830.0,108820.0,0.39318153]
[1752024713924,0.2450751,108830.0,108820.0,0.39318153]
[1752024716525,0.87604265,108830.0,108820.0,0.42402422]
[1752024716718,0.55127265,108830.0,108820.0,0.42402422]
[1752024716917,0.55127265,108830.0,108820.0,0.36896153]
[1752024717326,0.52774265,108830.0,108820.0,0.36896153]
[1752024717624,0.2767751,108830.0,108820.0,0.42402512]
[1752024717827,0.52774265,108830.0,108820.0,0.42402512]
[1752024718121,0.52774265,108830.0,108820.0,0.36896153]
[1752024718327,0.58157265,108830.0,108820.0,0.36896153]
[1752024718527,0.58157265,108830.0,108820.0,0.42402613]
[1752024718725,0.95157265,108830.0,108820.0,0.34757613]
[1752024718920,0.58157265,108830.0,108820.0,0.34757613]
[1752024719115,0.58157265,108830.0,108820.0,0.30823153]
[1752024720026,0.58157265,108830.0,108820.0,0.36329632]
[1752024720328,0.58157265,108830.0,108820.0,0.36329453]
[1752024720721,0.58157265,108830.0,108820.0,0.36329323]
[1752024721029,0.58157265,108830.0,108820.0,0.36329365]
[1752024721929,0.58157265,108830.0,108820.0,0.34757365]
[1752024722131,0.58157265,108830.0,108820.0,0.36329365]
[1752024722531,0.94157265,108830.0,108820.0,0.36329365]
[1752024722933,0.94152281,108830.0,108820.0,0.36329365]
[1752024725035,0.94152281,108830.0,108820.0,0.16382845]
[1752024725036,1.19244052,108830.0,108820.0,0.16382845]
[1752024725233,1.19244052,108830.0,108820.0,0.34757365]
[1752024725535,1.17704052,108830.0,108820.0,0.34757365]
[1752024725724,1.17704052,108830.0,108820.0,0.08112338]
[1752024725927,1.17704052,108830.0,108820.0,0.02616526]
[1752024726830,0.92617629,108830.0,108820.0,0.02616526]
[1752024727036,0.94253629,108830.0,108820.0,0.02616526]
[1752024733340,0.94253629,108830.0,108820.0,0.01180086]
[1752024737644,0.94253629,108830.0,108820.0,0.004]
[1752024738637,0.94253629,108830.0,108820.0,0.01167627]
[1752024738943,0.94253629,108830.0,108820.0,0.02604138]
[1752024746751,0.58253629,108830.0,108820.0,0.02404138]
[1752024747046,1.14357606,108830.0,108820.0,0.02504138]
[1752024747649,1.14357606,108830.0,108820.0,0.02304138]
[1752024748646,1.14357606,108830.0,108820.0,0.02304255]
[1752024753847,1.14357606,108830.0,108820.0,0.03852255]
[1752024753848,1.12856606,108830.0,108820.0,0.03852255]
[1752024754144,0.48068058,108830.0,108820.0,0.47327313]
[1752024754347,1.10988058,108830.0,108820.0,0.56166313]
[1752024754649,0.48068058,108830.0,108820.0,0.61672655]
[1752024754849,1.12623148,108830.0,108820.0,0.36572107]
[1752024755445,1.44623148,108830.0,108820.0,0.44842614]
[1752024755843,1.12623148,108830.0,108820.0,0.31065765]
[1752024756043,1.43623148,108830.0,108820.0,0.31065765]
[1752024756249,1.44623148,108830.0,108820.0,0.31065765]
[1752024756849,1.44623148,108830.0,108820.0,0.31065531]
[1752024757049,0.81703148,108830.0,108820.0,0.31065531]
[1752024757252,1.12619148,108830.0,108820.0,0.31065531]
[1752024757549,1.46619148,108830.0,108820.0,0.31065531]
[1752024759555,0.8753251,108830.0,108820.0,0.31065531]
[1752024759855,0.2461651,108830.0,108820.0,0.88384542]
[1752024760047,0.8753251,108830.0,108820.0,0.88384542]
[1752024760252,0.8753251,108830.0,108820.0,0.93890884]
[1752024760953,0.8753251,108830.0,108820.0,0.87384542]
[1752024761454,0.8753251,108830.0,108820.0,0.62297904]
[1752024761653,0.8753251,108830.0,108820.0,0.30297904]
[1752024761855,0.8753251,108830.0,108820.0,0.65297904]
[1752024762054,0.8753251,108830.0,108820.0,0.61297904]
[1752024762055,0.2461651,108830.0,108820.0,0.61297904]
[1752024762756,0.2461651,108830.0,108820.0,0.30297904]
[1752024763352,0.49703148,108830.0,108820.0,0.30297904]
[1752024763749,0.81703148,108830.0,108820.0,0.30297904]
[1752024765153,0.49703148,108830.0,108820.0,0.30297904]
[1752024765560,0.82703148,108830.0,108820.0,0.30297904]
[1752024765763,0.82703148,108830.0,108820.0,0.358042]
[1752024765961,0.82703148,108830.0,108820.0,0.44074707]
[1752024769268,0.82703148,108830.0,108820.0,0.38568365]
[1752024770268,0.82703148,108830.0,108820.0,0.30297858]
[1752024770465,0.86703148,108830.0,108820.0,0.38568365]
[1752024771576,0.86703148,108830.0,108820.0,0.37132017]
[1752024771767,0.86054148,108830.0,108820.0,0.37128017]
[1752024771967,0.87631148,108830.0,108820.0,0.37128017]
[1752024772174,0.86054148,108830.0,108820.0,0.37128017]
[1752024773084,0.2296751,108830.0,108820.0,0.97214655]
[1752024773374,0.2454451,108830.0,108820.0,0.97214655]
[1752024773563,0.2454451,108830.0,108820.0,0.98650934]
[1752024775977,0.2454451,108830.0,108820.0,0.73564296]
[1752024776774,0.2296751,108830.0,108820.0,0.73564296]
[1752024776973,0.2296751,108830.0,108820.0,0.98650934]
[1752024777174,0.2454451,108830.0,108820.0,0.98650934]
[1752024777575,0.2296751,108830.0,108820.0,0.98650934]
[1752024777878,0.2296751,108830.0,108820.0,0.73564296]
[1752024778079,0.2454451,108830.0,108820.0,0.73564296]
[1752024778282,0.2296751,108830.0,108820.0,0.73564296]
[1752024778782,0.2296751,108830.0,108820.0,0.98650934]
[1752024779378,0.4811136,108850.0,108820.0,0.80276424]
[1752024779681,0.33292664,108850.0,108840.0,0.1837115]
[1752024779879,0.33292664,108850.0,108840.0,0.19807429]
[1752024780083,0.34869664,108850.0,108840.0,0.26217429]
[1752024780285,0.30856664,108850.0,108840.0,0.30130429]
[1752024780482,0.32433664,108850.0,108840.0,0.30130429]
[1752024781376,0.32733664,108850.0,108840.0,0.30130429]
[1752024781889,0.32533664,108850.0,108840.0,0.30130429]
[1752024782086,0.91720302,108850.0,108840.0,0.30130429]
[1752024782786,0.94770302,108850.0,108840.0,0.30130429]
[1752024783084,0.97770302,108850.0,108840.0,0.30130429]
[1752024783285,1.00910302,108850.0,108840.0,0.30130429]
[1752024784484,0.63910302,108850.0,108840.0,0.30130429]
[1752024784686,0.95910302,108850.0,108840.0,0.30130429]
[1752024790989,0.95910302,108850.0,108840.0,0.2869415]
[1752024791292,0.95910302,108850.0,108840.0,0.30130205]
[1752024791794,0.95910302,108850.0,108840.0,0.03035055]
[1752024792090,0.98346302,108850.0,108840.0,0.01436055]
[1752024793589,1.05865911,108850.0,108840.0,0.19807205]
[1752024793792,1.73753911,108850.0,108840.0,0.21406205]
[1752024794590,1.10090273,108850.0,108840.0,0.19807205]
[1752024794788,1.70176911,108850.0,108840.0,0.19807205]
[1752024795294,1.70176911,108850.0,108840.0,0.21406205]
[1752024796990,1.35176911,108850.0,108840.0,0.21406205]
[1752024797187,1.69176911,108850.0,108840.0,0.21406205]
[1752024797387,1.66176911,108850.0,108840.0,0.21406205]
[1752024798095,1.63740911,108850.0,108840.0,0.19807205]
[1752024798286,1.66176911,108850.0,108840.0,0.19807205]
[1752024798988,1.35176911,108850.0,108840.0,0.21406205]
[1752024799189,1.71176911,108850.0,108840.0,0.21406205]
[1752024800695,1.72176911,108850.0,108840.0,0.21406205]
[1752024802795,1.71176911,108850.0,108840.0,0.21406205]
[1752024804095,1.71175727,108850.0,108840.0,0.21406272]
[1752024804901,1.10089089,108850.0,108840.0,0.21406272]
[1752024805196,1.69175727,108850.0,108840.0,0.21406272]
[1752024810702,1.68175727,108850.0,108840.0,0.21406272]
[1752024810902,1.68175727,108850.0,108840.0,0.01436122]
[1752024811302,1.35175727,108850.0,108840.0,0.19807272]
[1752024811502,1.71175727,108850.0,108840.0,0.19807272]
[1752024812705,1.35175727,108850.0,108840.0,0.19807272]
[1752024812898,1.67175727,108850.0,108840.0,0.19807272]
[1752024813098,1.04287727,108850.0,108840.0,0.21339272]
[1752024813296,1.68167727,108850.0,108840.0,0.21339272]
[1752024815309,1.73167727,108850.0,108840.0,0.21339272]
[1752024815500,1.73167727,108850.0,108840.0,0.24419272]
[1752024815812,1.73167727,108850.0,108840.0,0.32689779]
[1752024816116,1.35167727,108850.0,108840.0,0.32689779]
[1752024816308,1.67167727,108850.0,108840.0,0.32689779]
[1752024817310,1.68167727,108850.0,108840.0,0.32689779]
[1752024817517,1.04505089,108850.0,108840.0,0.35909779]
[1752024818015,1.32011727,108850.0,108840.0,0.35909779]
[1752024818209,1.32011727,108850.0,108840.0,0.35909748]
[1752024818411,1.64011727,108850.0,108840.0,0.35909748]
[1752024818914,1.67251727,108850.0,108840.0,0.35909748]
[1752024819215,1.10165089,108850.0,108840.0,0.35909748]
[1752024819514,1.68251727,108850.0,108840.0,0.35909748]
[1752024821114,1.10165089,108850.0,108840.0,0.35909748]
[1752024821415,1.72251727,108850.0,108840.0,0.35909748]
[1752024822823,1.72244937,108850.0,108840.0,0.60989596]
[1752024823119,1.68244937,108850.0,108840.0,0.60989596]
[1752024823417,1.67244937,108850.0,108840.0,0.60989596]
[1752024823821,1.64824937,108850.0,108840.0,0.60989596]
[1752024824011,1.67244937,108850.0,108840.0,0.60989596]
[1752024824823,1.67244937,108850.0,108840.0,0.27639241]
[1752024824824,0.37032479,108850.0,108840.0,0.27639241]
[1752024825125,1.26537327,108850.0,108840.0,0.52719089]
[1752024825327,1.28957327,108850.0,108840.0,0.52719089]
[1752024825528,1.03877479,108850.0,108840.0,0.52719089]
[1752024825728,1.28957327,108850.0,108840.0,0.52719089]
[1752024826428,1.28957327,108850.0,108840.0,0.27639241]
[1752024826629,1.28957327,108850.0,108840.0,0.52719089]
[1752024826828,1.32216272,108850.0,108840.0,0.27639241]
[1752024827328,1.67216272,108850.0,108840.0,0.27639234]
[1752024828331,1.59696663,108850.0,108840.0,0.27639234]
[1752024829431,1.56410811,108850.0,108840.0,0.33151528]
[1752024831332,1.56410811,108850.0,108840.0,0.41422035]
[1752024831932,1.63915345,108850.0,108840.0,0.41422035]
[1752024832132,1.63915345,108850.0,108840.0,0.33590035]
[1752024833139,1.63915345,108850.0,108840.0,0.25319548]
[1752024833528,1.63915345,108850.0,108840.0,0.05512294]
[1752024833734,1.63915345,108850.0,108840.0,0.25319627]
[1752024834335,1.63915345,108850.0,108840.0,0.06948457]
[1752024834736,1.63915345,108850.0,108840.0,0.25319627]
[1752024835739,1.63915345,108850.0,108840.0,0.06948457]
[1752024836238,1.63915345,108850.0,108840.0,0.25319627]
[1752024840342,1.28915345,108850.0,108840.0,0.25319627]
[1752024840542,1.63915345,108850.0,108840.0,0.25319627]
[1752024841839,1.60915345,108850.0,108840.0,0.25319627]
[1752024843746,1.60915345,108850.0,108840.0,0.25319639]
[1752024845845,1.60915345,108850.0,108840.0,0.19807345]
[1752024846249,1.62907345,108850.0,108840.0,0.21410345]
[1752024847042,1.62907345,108850.0,108840.0,0.26922639]
[1752024847243,1.62907345,108850.0,108840.0,0.21410345]
[1752024847846,1.62907345,108850.0,108840.0,0.26922639]
[1752024848847,1.62908584,108850.0,108840.0,0.52002671]
[1752024851049,1.62908584,108850.0,108840.0,0.26922639]
[1752024851249,1.62908584,108850.0,108840.0,0.52002671]
[1752024852449,1.28908584,108850.0,108840.0,0.26922639]
[1752024852646,1.61908584,108850.0,108840.0,0.26922639]
[1752024855351,1.61908584,108850.0,108840.0,0.26922573]
[1752024855854,1.61908584,108850.0,108840.0,0.3519308]
[1752024859057,1.03828552,108850.0,108840.0,0.3519308]
[1752024859250,1.60908584,108850.0,108840.0,0.3519308]
[1752024865757,1.35828552,108850.0,108840.0,0.3519308]
[1752024865945,1.59908584,108850.0,108840.0,0.3519308]
[1752024866856,1.84988616,108850.0,108840.0,0.3359009]
[1752024867259,1.84988616,108850.0,108840.0,0.1521891]
[1752024869461,1.84988616,108850.0,108840.0,0.3359009]
[1752024869962,1.59908584,108850.0,108840.0,0.3359009]
[1752024872566,1.84988616,108850.0,108840.0,0.1521891]
[1752024872766,1.84988616,108850.0,108840.0,0.1521897]
[1752024874566,1.84988616,108850.0,108840.0,0.3359014]
[1752024874758,1.84988616,108850.0,108840.0,0.25319633]
[1752024874958,1.84988616,108850.0,108840.0,0.06948463]
[1752024875170,1.84988616,108850.0,108840.0,0.25319643]
[1752024875460,1.84988616,108850.0,108840.0,0.06948463]
[1752024875868,1.84988616,108850.0,108840.0,0.1521897]
[1752024878171,1.84988616,108850.0,108840.0,0.3359014]
[1752024878572,1.84988616,108850.0,108840.0,0.33584981]
[1752024879276,1.84988616,108850.0,108840.0,0.15213811]
[1752024879465,1.84988616,108850.0,108840.0,0.15213782]
[1752024880176,1.84988616,108850.0,108840.0,0.06943275]
[1752024881777,1.59908584,108850.0,108840.0,0.25314455]
[1752024883677,0.66040584,108850.0,108840.0,0.25314455]
[1752024883877,0.62071584,108850.0,108840.0,0.60201994]
[1752024884066,1.24919584,108850.0,108840.0,0.66611994]
[1752024884377,1.27295584,108850.0,108840.0,0.66611362]
[1752024884574,1.20985584,108850.0,108840.0,0.66611362]
[1752024887265,0.58137584,108850.0,108840.0,0.66611362]
[1752024887470,0.93525552,108850.0,108840.0,0.66611362]
[1752024887777,1.20149584,108850.0,108840.0,0.66611362]
[1752024887984,1.18605584,108850.0,108840.0,0.66611362]
[1752024888378,1.18605584,108850.0,108840.0,0.58340855]
[1752024889178,0.93525552,108850.0,108840.0,0.58340855]
[1752024889380,1.22525584,108850.0,108840.0,0.58340855]
[1752024889576,1.18605584,108850.0,108840.0,0.58340855]
[1752024890378,1.49605584,108850.0,108840.0,0.58340855]
[1752024890578,1.18605584,108850.0,108840.0,0.58340855]
[1752024890877,1.51605584,108850.0,108840.0,0.58340855]
[1752024891876,1.51605584,108850.0,108840.0,0.33260823]
[1752024892082,1.57925584,108850.0,108840.0,0.25313823]
[1752024893980,1.24925584,108850.0,108840.0,0.25313823]
[1752024894182,1.61296584,108850.0,108840.0,0.25313823]
[1752024895080,1.61296584,108850.0,108840.0,0.32153981]
[1752024895784,1.61296584,108850.0,108840.0,0.1837118]
[1752024896983,1.61296584,108850.0,108840.0,0.23883474]
[1752024898285,1.27296584,108850.0,108840.0,0.23883474]
[1752024898484,1.63296584,108850.0,108840.0,0.23883474]
[1752024899487,1.00452584,108850.0,108840.0,0.23883474]
[1752024899690,0.1837118,108840.0,108830.0,0.40484174]
[1752024899888,1.06169244,108840.0,108830.0,0.38856667]
[1752024900078,1.08540244,108840.0,108830.0,0.38856667]
[1752024900592,0.77132244,108840.0,108830.0,0.38856667]
[1752024900792,1.07600244,108840.0,108830.0,0.38856667]
[1752024900987,1.07600244,108840.0,108830.0,0.38956667]
[1752024900988,1.05962244,108840.0,108830.0,0.38956667]
[1752024901193,1.03591244,108840.0,108830.0,0.38956667]
[1752024901493,1.05962244,108840.0,108830.0,0.38956667]
[1752024902193,1.05962244,108840.0,108830.0,0.37238154]
[1752024902692,1.03591244,108840.0,108830.0,0.37238154]
[1752024902895,1.03591244,108840.0,108830.0,0.62318186]
[1752024903303,0.71591244,108840.0,108830.0,0.62318186]
[1752024903492,0.73229244,108840.0,108830.0,0.62318186]
[1752024903799,0.45189212,108840.0,108830.0,0.64544186]
[1752024903995,0.45189212,108840.0,108830.0,0.39464154]
[1752024904192,0.45189212,108840.0,108830.0,0.64544186]
[1752024904394,0.45289212,108840.0,108830.0,0.64544186]
[1752024905805,0.45289212,108840.0,108830.0,0.67302399]
[1752024908804,0.2020918,108840.0,108830.0,0.67302399]
[1752024909104,0.45289212,108840.0,108830.0,0.67302399]
[1752024913908,0.2020918,108840.0,108830.0,0.67302399]
[1752024914206,0.45289212,108840.0,108830.0,0.67302399]
[1752024917711,0.45289212,108840.0,108830.0,1.30134399]
[1752024919518,0.45289212,108840.0,108830.0,1.35646044]
[1752024919815,0.2020918,108840.0,108830.0,1.30134399]
[1752024920014,0.45289212,108840.0,108830.0,1.30134399]
[1752024924509,0.70369244,108840.0,108830.0,1.30134399]
[1752024925915,0.45289212,108840.0,108830.0,1.30134399]
[1752024927918,0.45289212,108840.0,108830.0,1.05054367]
[1752024928216,0.45289212,108840.0,108830.0,1.30134399]
[1752024928416,0.45289212,108840.0,108830.0,1.21863892]
[1752024929313,0.48489212,108840.0,108830.0,1.21863892]
[1752024929708,0.2020918,108840.0,108830.0,1.30134514]
[1752024929909,0.45289212,108840.0,108830.0,1.30134514]
[1752024935825,0.45193212,108840.0,108830.0,1.34166578]
[1752024936121,0.43651212,108840.0,108830.0,1.34166578]
[1752024936520,0.45193212,108840.0,108830.0,1.34166578]
[1752024939923,0.45193212,108840.0,108830.0,1.34166662]
[1752024943829,0.43651212,108840.0,108830.0,1.31679662]
[1752024944033,0.43651212,108840.0,108830.0,1.34166662]
[1752024944530,0.45193212,108840.0,108830.0,1.34166662]
[1752024945830,0.45193212,108840.0,108830.0,1.20381892]
[1752024946031,0.45193212,108840.0,108830.0,1.28653068]
[1752024946232,0.45193212,108840.0,108830.0,1.20381892]
[1752024947825,0.45193212,108840.0,108830.0,1.313995]
[1752024948131,0.45193212,108840.0,108830.0,1.20381892]
[1752024948323,0.45193212,108840.0,108830.0,1.28652943]
[1752024951322,0.45193212,108840.0,108830.0,1.20381892]
[1752024952035,0.45193212,108840.0,108830.0,1.28652955]
[1752024952228,0.45193212,108840.0,108830.0,1.20381892]
[1752024953231,0.45193212,108840.0,108830.0,1.28652961]
[1752024955928,0.45193212,108840.0,108830.0,1.20381892]
[1752024958537,0.45193212,108840.0,108830.0,0.9530186]
[1752024958835,0.70273244,108840.0,108830.0,1.30165016]
[1752024959135,1.11143244,108840.0,108830.0,0.31643984]
[1752024959434,1.11143244,108840.0,108830.0,0.33191984]
[1752024961038,0.79143244,108840.0,108830.0,0.33191984]
[1752024961239,1.10143244,108840.0,108830.0,0.33191984]
[1752024964843,1.10143244,108840.0,108830.0,0.38705264]
[1752024966938,1.10143244,108840.0,108830.0,0.33191984]
[1752024975145,1.41923244,108840.0,108830.0,0.33191984]
[1752024976555,0.2011318,108840.0,108830.0,0.60737016]
[1752024976750,1.07969212,108840.0,108830.0,0.67057016]
[1752024978248,1.13689212,108840.0,108830.0,0.64592016]
[1752024978448,1.17009212,108840.0,108830.0,0.61312016]
[1752024979646,1.17009212,108840.0,108830.0,0.36231984]
[1752024979847,1.17009212,108840.0,108830.0,0.61312016]
[1752024980551,1.17009212,108840.0,108830.0,0.36231984]
[1752024980747,1.17009212,108840.0,108830.0,0.61312016]
[1752024982958,1.17009212,108840.0,108830.0,0.36231984]
[1752024983154,1.17009212,108840.0,108830.0,0.61312016]
[1752024985057,1.42089244,108840.0,108830.0,0.61312016]
[1752024985259,0.9192918,108840.0,108830.0,0.61312016]
[1752024985453,1.14509212,108840.0,108830.0,0.63753016]
[1752024985657,1.11189212,108840.0,108830.0,0.63753016]
[1752024985845,1.11189212,108840.0,108830.0,0.72346989]
[1752024986656,1.07969212,108840.0,108830.0,0.72346989]
[1752024986862,1.07957212,108840.0,108830.0,0.72346989]
[1752024991760,0.45193212,108840.0,108830.0,0.72346989]
[1752024992065,1.07953212,108840.0,108830.0,0.72346989]
[1752024995869,1.07953212,108840.0,108830.0,0.58561892]
[1752025000571,1.07953212,108840.0,108830.0,0.3348186]
[1752025000764,1.07953212,108840.0,108830.0,0.58561892]
[1752025005178,1.06411212,108840.0,108830.0,0.54572892]
[1752025006979,1.06411212,108840.0,108830.0,0.62843086]
[1752025007275,0.74338244,108840.0,108830.0,0.37763054]
[1752025007480,1.13919244,108840.0,108830.0,0.1051349]
[1752025007673,2.01743276,108840.0,108830.0,0.08270194]
[1752025007977,0.1837286,108830.0,108820.0,0.04173208]
[1752025008173,0.1837455,108820.0,108810.0,0.08270194]
[1752025008377,1.75478614,108820.0,108810.0,0.03714535]
[1752025008576,1.75478614,108820.0,108810.0,0.00714535]
[1752025008972,2.00558646,108820.0,108810.0,0.00714535]
[1752025009474,2.03912391,108820.0,108810.0,0.00714535]
[1752025009674,2.04853402,108820.0,108810.0,0.00714535]
[1752025009874,1.7977337,108820.0,108810.0,0.00714535]
[1752025010168,1.29613306,108820.0,108810.0,0.00914535]
[1752025010372,1.7977337,108820.0,108810.0,0.002]
[1752025010581,1.7977337,108820.0,108810.0,0.004]
[1752025010770,1.54713828,108820.0,108810.0,0.004]
[1752025010974,1.57130828,108820.0,108810.0,0.004]
[1752025011874,0.93445817,108820.0,108810.0,0.004]
[1752025012074,1.57764817,108820.0,108810.0,0.004]
[1752025012282,1.57764817,108820.0,108810.0,0.002]
[1752025012482,1.57864817,108820.0,108810.0,0.002]
[1752025012686,0.1837622,108810.0,108800.0,0.2756644]
[1752025012885,0.86018742,108810.0,108800.0,0.2756644]
[1752025013180,1.54477742,108810.0,108800.0,0.2920244]
[1752025013386,1.54477742,108810.0,108800.0,0.29912052]
[1752025014085,1.54477742,108810.0,108800.0,0.25317582]
[1752025014480,1.54477742,108810.0,108800.0,0.20723112]
[1752025014788,1.54477742,108810.0,108800.0,0.20823112]
[1752025019983,1.54477742,108810.0,108800.0,0.02445612]